{"text_format":"3","workbook":"xlsx","n_sheets":3,"sheets":["Опись наследственного имущества","Активы наследства","Обязательства наследства"],"not_rendered":{"defined_names":1},"read":"whole","date_system":"1900"}

{"sheet":"Опись наследственного имущества","index":0,"n_rows":45,"n_cols":35,"rows_kept":45,"merged":[[0,1,0,30],[0,31,0,39],[1,1,5,39],[6,1,6,6],[6,7,6,39],[7,1,7,6],[7,7,7,39],[9,1,9,6],[9,7,9,39],[10,1,10,6],[10,7,10,39],[11,1,11,6],[11,7,11,20],[11,21,11,26],[11,27,11,30],[11,31,11,33],[11,34,11,39],[12,1,12,6],[12,7,12,20],[12,21,12,26],[13,1,13,6],[13,7,13,20],[13,21,13,26],[14,1,14,6],[14,7,14,20],[14,21,14,26],[15,1,15,6],[17,1,17,39],[18,1,18,6],[18,7,18,12],[18,13,18,15],[18,16,18,18],[18,19,18,26],[18,27,18,31],[18,32,18,39],[19,1,19,6],[19,7,19,12],[19,13,19,15],[19,16,19,18],[19,19,19,26],[19,27,19,31],[19,32,19,39],[20,1,20,6],[20,7,20,12],[20,13,20,15],[20,16,20,18],[20,19,20,26],[20,27,20,31],[20,32,20,39],[21,1,21,6],[21,7,21,12],[21,13,21,15],[21,16,21,18],[21,19,21,26],[21,27,21,31],[21,32,21,39],[22,1,22,6],[22,7,22,12],[22,13,22,15],[22,16,22,18],[22,19,22,26],[22,27,22,31],[22,32,22,39],[23,1,23,6],[23,7,23,12],[23,13,23,15],[23,16,23,18],[23,19,23,26],[23,27,23,31],[23,32,23,39],[25,1,25,39],[26,1,26,6],[26,7,26,12],[26,13,26,18],[26,19,26,26],[26,27,26,31],[26,32,26,39],[27,1,27,6],[27,7,27,12],[27,13,27,18],[27,19,27,26],[27,27,27,31],[27,32,27,39],[28,1,28,6],[28,7,28,12],[28,13,28,18],[28,19,28,26],[28,27,28,31],[28,32,28,39],[29,1,29,6],[29,7,29,12],[29,13,29,18],[29,19,29,26],[29,27,29,31],[29,32,29,39],[30,1,30,6],[30,7,30,12],[30,13,30,18],[30,19,30,26],[30,27,30,31],[30,32,30,39],[31,1,31,6],[31,7,31,12],[31,13,31,18],[31,19,31,26],[31,27,31,31],[31,32,31,39],[33,1,33,12],[33,14,33,39],[34,1,34,12],[34,14,34,21],[34,22,34,25],[34,26,34,33],[34,34,34,39],[35,2,35,12],[35,14,35,21],[35,22,35,25],[35,26,35,33],[35,34,35,39],[36,2,36,12],[36,14,36,21],[36,22,36,25],[36,26,36,33],[36,34,36,39],[37,2,37,12],[37,14,37,21],[37,22,37,25],[37,26,37,33],[37,34,37,39],[38,2,38,12],[38,14,38,21],[38,22,38,25],[38,26,38,33],[38,34,38,39],[39,2,39,12],[39,14,39,21],[39,22,39,25],[39,26,39,33],[39,34,39,39],[40,2,40,12],[40,14,40,21],[40,22,40,25],[40,26,40,33],[40,34,40,39],[41,2,41,12],[41,14,41,21],[41,22,41,25],[41,26,41,33],[41,34,41,39],[42,2,42,12],[42,14,42,21],[42,22,42,25],[42,26,42,33],[42,34,42,38],[43,2,43,12],[43,14,43,21],[43,22,43,25],[43,26,43,33],[43,34,43,39],[44,2,44,12],[44,14,44,21],[44,22,44,25],[44,26,44,33],[44,34,44,39]]}
[]
[null,"Опись наследственного имущества"]
[]
[]
[]
[]
[null,"Имена исполнителей",{"$nulls":5},"Артем Кузнецов"]
[null,"Контактные данные",{"$nulls":5},"198052, Новгородская область, г. Боровичи, ул. Библиотечная, д. 45, кв. 67"]
[]
[null,"Имя наследодателя",{"$nulls":5},"Павел Безруков"]
[null,"Улица, номер дома, квартира",{"$nulls":5},"ул. Библиотечная, д. 67, кв. 89"]
[null,"Город",{"$nulls":5},"Боровичи",{"$nulls":13},"Область или край",{"$nulls":5},"Новгородская область",{"$nulls":3},"Индекс",null,null,98052]
[null,"Номер страховки",{"$nulls":5},"AAA-GG-SSSS",{"$nulls":13},"Род занятий",{"$nulls":5},"Стоматолог"]
[null,"Дата рождения",{"$nulls":5},"1965-12-08",{"$nulls":13},"Место рождения",{"$nulls":5},"Новгородская область"]
[null,"Дата смерти",{"$nulls":5},{"$f":"TODAY()-3","v":"2022-05-16"},{"$nulls":13},"Место смерти",{"$nulls":5},"Новгородская область"]
[null,"Дополнительные сведения"]
[]
[null,"  Супруг(-а), дети и другие иждивенцы"]
[null,"Имя",{"$nulls":5},"Степень родства",{"$nulls":5},"Иждивенец",null,null,"Возраст",null,null,"Адрес",{"$nulls":7},"Номер телефона",{"$nulls":4},"Электронная почта"]
[null,"Алина Ковалева",{"$nulls":5},"Личный представитель",{"$nulls":5},"Нет",null,null,30]
[null,"Светлана Коновалова",{"$nulls":5},"Супруг(-а)",{"$nulls":5},"Да",null,null,35]
[null,"Виктор Игнатьев",{"$nulls":5},"Ребенок",{"$nulls":5},"Да",null,null,12]
[]
[]
[]
[null,"Профессиональные консультанты"]
[null,"Тип консультанта",{"$nulls":5},"Контактное лицо",{"$nulls":5},"Компания",{"$nulls":5},"Адрес",{"$nulls":7},"Номер телефона",{"$nulls":4},"Электронная почта"]
[null,"Бухгалтер"]
[null,"Юрист/нотариус"]
[null,"Другое"]
[]
[]
[]
[null,"  Контрольный список наследственного имущества",{"$nulls":12},"  Описи наследственного имущества"]
[null,"    Элементы контрольного списка",{"$nulls":12},"Активы, входящие в наследственную массу",{"$nulls":7},"Стоимость имущества (₽)",{"$nulls":3},"Обязательства, входящие в наследственную массу",{"$nulls":7},"Стоимость имущества (₽)"]
[null,"✔","Последняя воля, завещание или любые другие документы",{"$nulls":11},{"$f":"'Активы наследства'!B12","v":"Банковские счета"},{"$nulls":7},{"$f":"'Активы наследства'!G20","v":{"v":0,"d":"0.00 ₽"}},{"$nulls":3},{"$f":"'Обязательства наследства'!B11","v":"Ипотека"},{"$nulls":7},{"$f":"'Обязательства наследства'!G18","v":{"v":0,"d":"0.00 ₽"}}]
[null,"✔","Соглашение об аренде хранилища ценностей и ключи",{"$nulls":11},{"$f":"'Активы наследства'!B22","v":"Личные инвестиции"},{"$nulls":7},{"$f":"'Активы наследства'!G30","v":{"v":0,"d":"0.00 ₽"}},{"$nulls":3},{"$f":"'Обязательства наследства'!B21","v":"Личные займы и кредитные линии"},{"$nulls":7},{"$f":"'Обязательства наследства'!G28","v":{"v":0,"d":"0.00 ₽"}}]
[null,"✖","Пароли для компьютеров и учетных записей в Интернете",{"$nulls":11},{"$f":"'Активы наследства'!B32","v":"Доли в бизнесе"},{"$nulls":7},{"$f":"'Активы наследства'!G40","v":{"v":0,"d":"0.00 ₽"}},{"$nulls":3},{"$f":"'Обязательства наследства'!B31","v":"Доли в бизнесе"},{"$nulls":7},{"$f":"'Обязательства наследства'!G38","v":{"v":0,"d":"0.00 ₽"}}]
[null,"✔","Соглашения о доверительной собственности, вступающие в силу при жизни учредителя",{"$nulls":11},{"$f":"'Активы наследства'!B42","v":"Недвижимость"},{"$nulls":7},{"$f":"'Активы наследства'!G50","v":{"v":0,"d":"0.00 ₽"}},{"$nulls":3},{"$f":"'Обязательства наследства'!B41","v":"Кредитные карты"},{"$nulls":7},{"$f":"'Обязательства наследства'!G48","v":{"v":0,"d":"0.00 ₽"}}]
[null,"✔","Страховые полисы страховки жизни, здоровья, страховки от несчастных случаев",{"$nulls":11},{"$f":"'Активы наследства'!B52","v":"Пенсионные планы"},{"$nulls":7},{"$f":"'Активы наследства'!G60","v":{"v":0,"d":"0.00 ₽"}},{"$nulls":3},{"$f":"'Обязательства наследства'!B51","v":"Другие обязательства"},{"$nulls":7},{"$f":"'Обязательства наследства'!G58","v":{"v":0,"d":"0.00 ₽"}}]
[null,"✔","Финансовая отчетность",{"$nulls":11},{"$f":"'Активы наследства'!B62","v":"Страхование"},{"$nulls":7},{"$f":"'Активы наследства'!G70","v":{"v":0,"d":"0.00 ₽"}}]
[null,"✔","Налоговые декларации за последние три года",{"$nulls":11},{"$f":"'Активы наследства'!B72","v":"Частные займы и ипотечные займы"},{"$nulls":7},{"$f":"'Активы наследства'!G80","v":{"v":0,"d":"0.00 ₽"}}]
[null,"✔","Свидетельства о рождении и смерти",{"$nulls":11},{"$f":"'Активы наследства'!B82","v":"Доля в другом имуществе и в договорах доверительного управления"},{"$nulls":7},{"$f":"'Активы наследства'!G90","v":{"v":0,"d":"0.00 ₽"}}]
[null,"✖","Соглашения о передаче собственности, выписки по ипотеке и аренде",{"$nulls":11},{"$f":"'Активы наследства'!B92","v":"Личные вещи и другие активы"},{"$nulls":7},{"$f":"'Активы наследства'!G100","v":{"v":0,"d":"0.00 ₽"}}]
[null,"☐","Неоплаченные счета и расписки",{"$nulls":11},"Общая сумма активов",{"$nulls":7},{"$f":"'Активы наследства'!G10","v":{"v":0,"d":"0.00 ₽"}},{"$nulls":3},"Общая сумма обязательств",{"$nulls":7},{"$f":"SUM(AI36:AN44)","v":{"v":0,"d":"0.00 ₽"}}]

{"sheet":"Активы наследства","index":1,"n_rows":100,"n_cols":8,"rows_kept":100,"merged":[[0,1,0,7],[1,1,5,7],[6,1,7,7],[11,1,11,7],[12,1,12,7],[21,1,21,7],[22,1,22,7],[31,1,31,7],[32,1,32,7],[41,1,41,7],[42,1,42,7],[51,1,51,7],[52,1,52,7],[61,1,61,7],[62,1,62,7],[71,1,71,7],[72,1,72,7],[81,1,81,7],[82,1,82,7],[91,1,91,7],[92,1,92,7]]}
[]
[null,"Активы наследства"]
[]
[]
[]
[]
[null,"Используйте этот рабочий лист для создания инвентарной описи наследственного имущества.. Необходимо определить рыночную стоимость каждого актива на дату смерти. Чтобы получить рыночную стоимость, просмотрите все записи, включая финансовые отчеты, страховые полисы и налоговые декларации. Возможно, потребуется также получить оценку личного имущества (например, произведений искусства, коллекций, предметов антиквариата и т. д.). Не забудьте также включить в опись все зарубежные активы, такие как недвижимое имущество, ценные бумаги и доли в иностранном бизнесе. Чтобы получить точную рыночную стоимость зарубежных активов, можно воспользоваться помощью профессионалов."]
[]
[]
[null,"Общая сумма активов",{"$nulls":4},{"$f":"тблБанковскиеСчета[[#Totals],[Остаток ]]+тблЛичныеИнвестиции[[#Totals],[Рыночная стоимость]]+тблДоли_в_бизнесе[[#Totals],[Стоимость ]]+тблНедвижимость[[#Totals],[Рыночная цена]]+тблПенсионныеПланы[[#Totals],[Стоимость ]]+тблСтрахование[[#Totals],[Цена продажи ]]+тблИпотека[[#Totals],[Оставшаяся задолженность ]]+тблДоверительноеУправление[[#Totals],[Сумма к выплате]]+тблДругиеАктивы[[#Totals],[Стоимость ]]","v":{"v":0,"d":"0.00 ₽"}}]
[]
[null,"Банковские счета"]
[null,"Список всех банковских счетов, включая текущие счета, дорожные чеки, платежные ордера, счета в коммерческих банках, сберегательных банках, кредитных союзах и т. д. Укажите все имена владельцев счетов и фактическую наличную сумму в рублях и копейках на момент смерти."]
[null,"Финансовое учреждение ","Адрес","Телефон","Номер счета","Тип счета","Остаток ","Заметки"]
[]
[]
[]
[]
[]
[null,"Итого",{"$nulls":4},{"$f":"SUBTOTAL(109,тблБанковскиеСчета[[Остаток ]])","v":{"v":0,"d":"0.00 ₽"}}]
[]
[null,"Личные инвестиции"]
[null,"Перечислите расчетные счета, маржевые счета, необлагаемые налогом сберегательные счета, зарегистрированные накопительные пенсионные планы, зарегистрированные накопительные пенсионные фонды, срочные зарегистрированные накопительные пенсионные планы (без возможности снятия в течение определенного срока), срочные зарегистрированные накопительные пенсионные фонды (без возможности снятия в течение определенного срока), планы пожизненного дохода, обязательные пенсионные планы, зарегистрированные сберегательные планы для образования, аннуитеты и т. д."]
[null,"Компания","Адрес","Телефон","Номер счета","Бенефициар","Рыночная стоимость","Примечания"]
[]
[]
[]
[]
[]
[null,"Итого",{"$nulls":4},{"$f":"SUBTOTAL(109,тблЛичныеИнвестиции[Рыночная стоимость])","v":{"v":0,"d":"0.00 ₽"}}]
[]
[null,"Доли в бизнесе"]
[null,"Перечислите все доли в бизнесе, включая индивидуальные предприятия без образования юридического лица, профессиональные практики, корпорации, партнерства, компании и партнерства с ограниченной ответственностью, совместные предприятия и другие коммерческие организации, акции которых не продаются на фондовой бирже. "]
[null,"Название компании","Адрес","Телефон","Контактное лицо","Тип","Стоимость ","Примечания"]
[]
[]
[]
[]
[]
[null,"Итого",{"$nulls":4},{"$f":"SUBTOTAL(109,тблДоли_в_бизнесе[[Стоимость ]])","v":{"v":0,"d":"0.00 ₽"}}]
[]
[null,"Недвижимость"]
[null,"Перечислите всё недвижимое имущество, в отношении которого наследодатель и супруг(-а) наследодателя являются владельцами, совладельцами или частичными владельцами, в том числе имущество для временного проживания с целью отдыха и таймшеры. Получите копии титулов на собственность. Предоставьте описание недвижимого имущества с указанием физического адреса. Перечислите рыночную стоимость собственности на основе последней оценки налоговой инспекцией."]
[null,"Адрес","У кого находится документ на владение","Телефон","Контактное лицо","Цена покупки","Рыночная цена","Примечания"]
[]
[]
[]
[]
[]
[null,"Итого",{"$nulls":3},{"$f":"SUBTOTAL(109,тблНедвижимость[Цена покупки])","v":{"v":0,"d":"0.00 ₽"}},{"$f":"SUBTOTAL(109,тблНедвижимость[Рыночная цена])","v":{"v":0,"d":"0.00 ₽"}}]
[]
[null,"Пенсионные планы"]
[null,"Перечислите материальные льготы, частные пенсионные вклады, пенсионные фонды с фиксированным взносом, планы долевой прибыли с отсрочкой прибыли, групповые зарегистрированные сберегательные пенсионные планы и т.п."]
[null,"Компания","Телефон","Тип плана","Бенефициар","Электронная почта","Стоимость ","Примечания"]
[]
[]
[]
[]
[]
[null,"Итого",{"$nulls":4},{"$f":"SUBTOTAL(109,тблПенсионныеПланы[[Стоимость ]])","v":{"v":0,"d":"0.00 ₽"}}]
[]
[null,"Страхование"]
[null,"Перечислите Соглашения о доверительной собственности, вступающие в силу при жизни учредителя, полисы страхования жизни с указанием бенефициаров и инвестиционные счета, переданные по случаю смерти в качестве активов, не включенных в наследственную массу. Если суд запросит об этих активах, исполнителю будет удобно сослаться на список активов, не включенных в наследственную массу, и объяснить их отсутствие в описи наследственного имущества."]
[null,"Эмитент","Номер страхового полиса","Телефон","Бенефициар","Номинальная стоимость ","Цена продажи ","Примечания"]
[]
[]
[]
[]
[]
[null,"Итого",{"$nulls":3},{"$f":"SUBTOTAL(109,тблСтрахование[[Номинальная стоимость ]])","v":{"v":0,"d":"0.00 ₽"}},{"$f":"SUBTOTAL(109,тблСтрахование[[Цена продажи ]])","v":{"v":0,"d":"0.00 ₽"}}]
[]
[null,"Частные займы и ипотечные займы"]
[null,"Перечислите частные займы и ипотечные займы, в которых наследодатель выступал в роли заимодавца."]
[null,"Имя заемщика","Адрес","Телефон","Тип","Исходная сумма","Оставшаяся задолженность ","Примечания"]
[]
[]
[]
[]
[]
[null,"Итого",{"$nulls":3},{"$f":"SUBTOTAL(109,тблИпотека[Исходная сумма])","v":{"v":0,"d":"0.00 ₽"}},{"$f":"SUBTOTAL(109,тблИпотека[[Оставшаяся задолженность ]])","v":{"v":0,"d":"0.00 ₽"}}]
[]
[null,"Доля в другом имуществе и в договорах доверительного управления"]
[null,"Перечислите активы, зарегистрированные на имя наследодателя, которыми он владел от имени других лиц (например, активы, которые он хранил в качестве попечителя или в доверительной собственности)."]
[null,"Наименование имущества / доверительной собственности","Имена исполнителя/попечителя","Телефон","Адрес","Электронная почта","Сумма к выплате","Примечания"]
[]
[]
[]
[]
[]
[null,"Итого",{"$nulls":4},{"$f":"SUBTOTAL(109,тблДоверительноеУправление[Сумма к выплате])","v":{"v":0,"d":"0.00 ₽"}}]
[]
[null,"Личные вещи и другие активы"]
[null,"Перечислите все личные вещи, например: автомобили, мебель, предметы искусства, предметы антиквариата, мебель. Включите предметы, которые могли храниться в сейфе или банковском хранилище."]
[null,"Описание предмета","Расположение","Телефон","Контактное лицо","Бенефициар","Стоимость ","Заметки"]
[]
[]
[]
[]
[]
[null,"Итого",{"$nulls":4},{"$f":"SUBTOTAL(109,тблДругиеАктивы[[Стоимость ]])","v":{"v":0,"d":"0.00 ₽"}}]

{"sheet":"Обязательства наследства","index":2,"n_rows":58,"n_cols":8,"rows_kept":58,"merged":[[0,1,0,7],[1,1,5,7],[6,1,6,7],[10,1,10,7],[20,1,20,7],[30,1,30,7],[40,1,40,7],[50,1,50,7]]}
[]
[null,"Обязательства наследства"]
[]
[]
[]
[]
[null,"Используйте этот лист, чтобы перечислить обязательства, входящие в наследственную массу (как внутри страны, так и за рубежом). Вам потребуется оценка каждого обязательства на дату смерти."]
[]
[null,"Общая сумма активов",{"$nulls":4},{"$f":"SUM(G18,G28,G38,G48,G58)","v":{"v":0,"d":"0.00 ₽"}}]
[]
[null,"Ипотека"]
[null,"Финансовое учреждение ","Адрес","Телефон","У кого находится документ на владение","Номер счета","Остаток ","Заметки"]
[]
[]
[]
[]
[]
[null,"Итого",{"$nulls":4},{"$f":"SUBTOTAL(109,тблБанковскиеСчета2[[Остаток ]])","v":{"v":0,"d":"0.00 ₽"}}]
[]
[]
[null,"Личные займы и кредитные линии"]
[null,"Финансовое учреждение","Адрес","Телефон"," Номер счета","Тип","Остаток ","Примечания"]
[]
[]
[]
[]
[]
[null,"Итого",{"$nulls":4},{"$f":"SUBTOTAL(109,тблЛичныеИнвестиции3[[Остаток ]])","v":{"v":0,"d":"0.00 ₽"}}]
[]
[]
[null,"Доли в бизнесе"]
[null,"Название компании","Адрес"," Телефон"," Контактное лицо","Тип","Стоимость ","Примечания"]
[]
[]
[]
[]
[]
[null,"Итого",{"$nulls":4},{"$f":"SUBTOTAL(109,тблДоли_в_бизнесе4[[Стоимость ]])","v":{"v":0,"d":"0.00 ₽"}}]
[]
[]
[null,"Кредитные карты"]
[null,"Компании-эмитенты кредитных карт","Адрес компании","Телефон","Номер карты","Дата окончания срока действия ","Остаток ","Примечания"]
[]
[]
[]
[]
[]
[null,"Итого",{"$nulls":4},{"$f":"SUBTOTAL(109,тблНедвижимость5[[Остаток ]])","v":{"v":0,"d":"0.00 ₽"}}]
[]
[]
[null,"Другие обязательства"]
[null,"Описание предмета","Расположение","Телефон","Контактное лицо","Бенефициар","Стоимость ","Заметки"]
[]
[]
[]
[]
[]
[null,"Итого",{"$nulls":4},{"$f":"SUBTOTAL(109,тблПенсионныеПланы6[[Стоимость ]])","v":{"v":0,"d":"0.00 ₽"}}]